bitfinex/quotes_SOLUSD_20220130
["timestamp","ask_amount","ask_price","bid_price","bid_amount"]
[1643567892910,15.904,94.37,94.311,0.45]
[1643567893109,15.904,94.37,94.32,6.0]
[1643567893313,15.904,94.37,94.321,0.25]
[1643567893512,105.1,94.369,94.311,0.25]
[1643567893712,22.8939,94.379,94.311,0.25]
[1643567894014,105.1,94.378,94.311,0.25]
[1643567894612,105.1,94.378,94.303,6.0]
[1643567894815,105.1,94.378,94.308,6.0]
[1643567895014,15.906,94.36,94.309,6.0]
[1643567895417,0.25,94.359,94.31,6.25]
[1643567895614,0.25,94.359,94.31,6.45]
[1643567895815,0.25,94.359,94.31,6.25]
[1643567897218,0.25,94.359,94.31,22.154]
[1643567897416,0.25,94.359,94.311,0.2]
[1643567897615,0.25,94.369,94.32,6.0]
[1643567897816,0.25,94.369,94.321,0.25]
[1643567898820,0.25,94.369,94.32,6.0]
[1643567900421,0.25,94.369,94.321,0.25]
[1643567900822,0.25,94.369,94.32,6.0]
[1643567901023,15.905,94.36,94.32,6.0]
[1643567901424,0.25,94.359,94.32,6.0]
[1643567902027,0.25,94.359,94.318,6.0]
[1643567902325,15.907,94.35,94.305,6.0]
[1643567902524,15.907,94.35,94.304,6.0]
[1643567902724,0.25,94.367,94.304,42.26914375]
[1643567902931,0.25,94.367,94.305,0.45]
[1643567903130,22.8939,94.379,94.314,6.0]
[1643567903327,15.906,94.36,94.315,0.25]
[1643567903730,0.25,94.359,94.315,0.25]
[1643567905029,15.906,94.36,94.314,6.0]
[1643567906940,0.25,94.359,94.305,0.2]
[1643567907140,21.912,94.35,94.289,1.47237621]
[1643567907339,21.912,94.35,94.283,0.2]
[1643567907340,0.25,94.349,94.283,1.67237621]
[1643567907540,6.25,94.349,94.279,1.47237621]
[1643567907740,6.25,94.349,94.284,1.47237621]
[1643567907939,53.045,94.34,94.285,1.47237621]
[1643567908145,53.045,94.34,94.286,1.47237621]
[1643567908341,0.25,94.339,94.286,1.47237621]
[1643567908541,0.25,94.339,94.296,6.0]
[1643567909241,15.914,94.33,94.296,6.0]
[1643567909441,15.914,94.33,94.289,1.47237621]
[1643567909640,15.914,94.33,94.299,6.0]
[1643567909846,22.6178,94.348,94.3,0.25]
[1643567910041,15.909,94.34,94.303,6.0]
[1643567910241,15.909,94.34,94.3,0.2]
[1643567910440,15.909,94.34,94.299,6.0]
[1643567910441,15.909,94.34,94.304,6.0]
[1643567911043,15.909,94.34,94.302,6.0]
[1643567911244,0.25,94.339,94.302,6.0]
[1643567911843,15.907,94.35,94.303,0.25]
[1643567912043,15.907,94.35,94.303,27.23142517]
[1643567912262,0.25,94.349,94.304,0.2]
[1643567912467,0.25,94.349,94.3,6.0]
[1643567912669,0.25,94.349,94.306,6.0]
[1643567912867,0.25,94.349,94.301,0.25]
[1643567912868,0.25,94.349,94.301,0.45]
[1643567913068,15.909,94.34,94.301,0.25]
[1643567913268,0.25,94.339,94.301,0.25]
[1643567914269,6.0,94.345,94.301,6.25]
[1643567914569,6.0,94.345,94.302,21.06783209]
[1643567914769,6.0,94.345,94.297,7.47237621]
[1643567914770,6.0,94.345,94.303,0.45]
[1643567914968,6.0,94.345,94.303,0.25]
[1643567915869,6.0,94.345,94.303,0.45]
[1643567916074,1.45182235,94.399,94.312,6.0]
[1643567916272,0.25,94.378,94.313,0.25]
[1643567916672,0.25,94.378,94.314,6.0]
[1643567916871,0.25,94.378,94.315,0.25]
[1643567917070,0.25,94.378,94.323,6.0]
[1643567917272,0.25,94.378,94.325,23.47128631]
[1643567917472,0.25,94.378,94.326,0.2]
[1643567917672,0.25,94.378,94.326,0.45]
[1643567918272,23.6794,94.397,94.326,0.45]
[1643567918576,23.6794,94.397,94.335,6.0]
[1643567919672,15.903,94.37,94.335,6.0]
[1643567919874,0.25,94.369,94.335,6.0]
[1643567920678,0.25,94.369,94.328,6.0]
[1643567920875,0.25,94.369,94.329,0.25]
[1643567921080,0.25,94.379,94.329,0.25]
[1643567921675,0.25,94.379,94.33,6.0]
[1643567921877,0.25,94.379,94.331,0.25]
[1643567922076,0.25,94.379,94.331,6.25]
[1643567922277,0.25,94.389,94.331,6.45]
[1643567922478,6.0,94.387,94.331,0.45]
[1643567922685,22.9618,94.386,94.332,6.0]
[1643567922878,22.9618,94.386,94.333,0.25]
[1643567923081,0.25,94.385,94.333,0.25]
[1643567923981,15.901,94.38,94.333,0.25]
[1643567924281,0.25,94.379,94.333,0.25]
[1643567924981,0.25,94.379,94.323,0.45]
[1643567925380,0.25,94.379,94.33,15.901]
[1643567925582,15.902,94.38,94.332,6.0]
[1643567925781,0.25,94.379,94.333,0.25]
[1643567925980,0.25,94.379,94.333,6.25]
[1643567926384,15.903,94.37,94.333,6.25]
[1643567926880,0.25,94.369,94.333,0.25]
[1643567927881,0.25,94.379,94.333,0.25]
[1643567930491,0.25,94.379,94.34,6.0]
[1643567931085,0.25,94.379,94.331,0.45]
[1643567931690,0.25,94.379,94.34,6.0]
[1643567932590,0.25,94.379,94.332,6.0]
[1643567932788,0.25,94.379,94.333,0.25]
[1643567934093,44.0,94.378,94.322,23.1524]
[1643567934290,0.25,94.377,94.322,23.1524]
[1643567935493,0.25,94.379,94.322,23.1524]
[1643567935692,15.903,94.37,94.322,23.1524]
[1643567935892,0.25,94.369,94.322,23.1524]
[1643567936291,0.25,94.369,94.323,0.25]
[1643567937695,0.25,94.379,94.323,0.25]
[1643567939224,15.903,94.37,94.323,0.25]
[1643567939422,15.903,94.37,94.323,0.45]
[1643567939622,0.25,94.369,94.323,0.45]
[1643567940222,15.905,94.36,94.323,0.45]
[1643567940624,15.905,94.36,94.319,0.25]
[1643567942323,15.905,94.36,94.32,6.0]
[1643567942524,15.905,94.36,94.325,6.0]
[1643567942724,0.25,94.369,94.325,6.0]
[1643567942924,0.25,94.369,94.326,6.25]
[1643567943124,0.25,94.369,94.326,0.45]
[1643567943324,0.25,94.369,94.326,0.25]
[1643567943724,0.25,94.369,94.328,6.0]
[1643567943924,0.25,94.369,94.326,0.45]
[1643567944125,0.25,94.369,94.326,0.25]
[1643567944626,0.25,94.369,94.329,6.0]
[1643567944824,0.25,94.374,94.33,46.3083572]
[1643567945026,0.25,94.374,94.34,6.0]
[1643567945426,0.25,94.374,94.331,0.2]
[1643567945626,0.25,94.374,94.33,0.25]
[1643567946025,0.25,94.374,94.323,0.25]
[1643567946527,0.25,94.374,94.331,6.0]
[1643567946727,0.25,94.374,94.331,6.2]
[1643567946926,0.25,94.374,94.333,6.0]
[1643567947129,0.25,94.374,94.334,6.0]
[1643567947729,0.25,94.374,94.332,6.25]
[1643567947931,0.25,94.374,94.335,6.0]
[1643567948332,0.25,94.379,94.335,6.0]
[1643567951534,0.25,94.379,94.336,6.0]
[1643567951834,0.25,94.379,94.336,6.2]
[1643567952034,0.25,94.379,94.336,6.0]
[1643567952637,0.25,94.379,94.335,6.0]
[1643567954539,0.25,94.379,94.34,6.0]
[1643567954741,0.25,94.379,94.336,0.2]
[1643567954938,25.2105,94.379,94.331,0.45]
[1643567956139,25.2105,94.379,94.335,6.0]
[1643567959241,25.2105,94.379,94.331,0.2]
[1643567959442,25.2105,94.379,94.331,0.45]
[1643567959642,25.2105,94.379,94.335,6.0]
[1643567963051,25.2105,94.379,94.34,6.0]
[1643567964255,25.2105,94.379,94.331,0.2]
[1643567964554,25.2105,94.379,94.331,0.45]
[1643567966379,22.7105,94.379,94.331,0.45]
[1643567967879,22.7105,94.379,94.34,15.899]
[1643567968079,22.7105,94.379,94.341,0.2]
[1643567968278,0.25,94.378,94.341,28.05098738]
[1643567968479,0.25,94.378,94.342,0.2]
[1643567971982,0.25,94.378,94.336,6.0]
[1643567972595,0.25,94.378,94.337,6.0]
[1643567972799,0.25,94.378,94.338,33.05682487]
[1643567972997,0.25,94.378,94.339,0.2]
[1643567974097,0.25,94.378,94.34,15.899]
[1643567974297,0.25,94.378,94.341,0.2]
[1643567975302,15.898,94.4,94.35,6.0]
[1643567975700,0.25,94.399,94.35,6.0]
[1643567976728,24.3588,94.399,94.35,6.0]
[1643567976929,15.9,94.39,94.341,0.2]
[1643567977127,15.9,94.39,94.342,6.0]
[1643567977329,0.25,94.389,94.342,6.0]
[1643567977529,0.25,94.389,94.34,6.0]
[1643567978128,0.25,94.389,94.349,6.0]
[1643567978528,0.25,94.389,94.35,6.0]
[1643567979727,0.25,94.389,94.341,0.2]
[1643567979930,15.901,94.38,94.331,0.2]
[1643567980130,15.901,94.38,94.331,0.45]
[1643567980332,0.25,94.379,94.331,0.45]
[1643567980535,24.5342,94.379,94.331,0.45]
[1643567980731,24.5342,94.379,94.331,0.2]
[1643567980931,24.5342,94.379,94.331,0.45]
[1643567982932,24.5342,94.379,94.34,6.0]
[1643567984535,24.5342,94.379,94.345,6.0]
[1643567985333,24.5342,94.379,94.336,0.2]
[1643567985533,24.5342,94.379,94.331,0.2]
[1643567985737,24.5342,94.379,94.324,0.2]
[1643567986334,24.5342,94.379,94.324,41.40042567]
[1643567986533,24.5342,94.379,94.325,0.2]
[1643567986833,24.5342,94.379,94.325,0.45]
[1643567987834,24.5342,94.379,94.325,0.2]
[1643567988034,24.5342,94.379,94.324,0.45]
[1643567988936,24.5342,94.379,94.324,39.02779364]
[1643567989137,24.5342,94.379,94.325,0.2]
[1643567991236,24.5342,94.379,94.33,15.901]
[1643567991437,24.5342,94.379,94.331,0.2]
[1643567991638,24.5342,94.379,94.331,0.45]
[1643567994339,0.25,94.379,94.34,15.899]
[1643567994540,0.25,94.379,94.341,0.2]
[1643567994737,0.25,94.389,94.325,0.45]
[1643567994937,6.0,94.399,94.325,0.2]
[1643567995340,0.25,94.398,94.325,0.2]
[1643567995738,15.902,94.38,94.325,0.2]
[1643567995941,23.4674,94.379,94.325,0.2]
[1643567996144,23.7174,94.379,94.325,0.2]
[1643567996940,23.7174,94.379,94.33,15.901]
[1643567997139,23.7174,94.379,94.331,0.2]
[1643567998741,15.903,94.37,94.331,0.2]
[1643567998943,15.903,94.37,94.324,0.2]
[1643567999140,0.25,94.369,94.324,0.2]
[1643567999743,0.25,94.369,94.33,15.901]
[1643567999943,0.25,94.369,94.331,0.2]
[1643568000344,0.25,94.378,94.331,0.2]
[1643568001047,0.25,94.378,94.325,0.2]
[1643568001245,0.25,94.378,94.324,0.2]
[1643568001849,15.902,94.37,94.31,16.154]
[1643568002047,15.902,94.37,94.311,0.2]
[1643568002246,0.25,94.369,94.311,0.2]
[1643568003047,0.25,94.369,94.32,6.0]
[1643568003248,0.25,94.377,94.32,6.0]
[1643568003852,0.25,94.378,94.32,21.903]
[1643568004057,0.25,94.378,94.321,0.2]
[1643568005757,15.903,94.37,94.321,0.2]
[1643568005963,6.0,94.369,94.306,1.47237621]
[1643568006160,6.0,94.36,94.302,0.2]
[1643568006357,0.25,94.359,94.302,0.2]
[1643568006561,0.25,94.359,94.302,0.45]
[1643568006759,15.906,94.35,94.302,35.12427602]
[1643568006961,23.8951,94.349,94.303,0.2]
[1643568007259,0.25,94.348,94.303,0.2]
[1643568007462,24.3007,94.379,94.312,6.0]
[1643568007660,24.5507,94.379,94.312,6.0]
[1643568007861,24.5507,94.379,94.313,0.25]
[1643568008064,24.5507,94.379,94.315,6.0]
[1643568008463,24.3007,94.379,94.315,6.0]
[1643568008665,24.3007,94.379,94.313,0.25]
[1643568008862,24.3007,94.379,94.304,1.47237621]
[1643568008863,24.3007,94.379,94.305,0.25]
[1643568009062,15.904,94.36,94.31,15.904]
[1643568009261,24.0651,94.359,94.311,0.45]
[1643568009880,0.25,94.358,94.311,0.45]
[1643568010281,15.905,94.35,94.311,0.45]
[1643568010680,0.25,94.349,94.311,0.45]
[1643568010882,0.25,94.349,94.311,0.2]
[1643568011082,0.25,94.349,94.304,0.25]
[1643568012081,0.25,94.349,94.303,0.45]
[1643568012680,15.907,94.34,94.303,0.45]
[1643568012882,0.25,94.339,94.303,0.45]
[1643568014082,15.906,94.35,94.312,6.0]
[1643568014281,15.906,94.35,94.313,0.25]
[1643568014683,15.906,94.35,94.312,6.0]
[1643568015082,15.906,94.35,94.303,0.2]
[1643568015284,15.906,94.35,94.303,0.45]
[1643568015483,15.906,94.35,94.31,15.905]
[1643568015683,15.906,94.35,94.311,0.2]
[1643568015883,0.25,94.349,94.311,0.2]
[1643568016287,0.25,94.349,94.303,0.45]
[1643568017286,0.25,94.349,94.312,6.0]
[1643568017685,0.25,94.349,94.303,0.45]
[1643568019487,0.25,94.349,94.312,6.0]
[1643568020288,0.25,94.358,94.312,6.0]
[1643568020489,0.25,94.358,94.321,29.85334488]
[1643568020689,0.25,94.358,94.322,0.2]
[1643568021187,15.905,94.35,94.322,0.2]
[1643568021390,0.25,94.349,94.322,0.2]
[1643568021794,0.25,94.349,94.302,0.45]
[1643568022591,0.25,94.349,94.302,40.03625314]
[1643568022794,0.25,94.349,94.303,0.2]
[1643568023197,15.907,94.34,94.303,0.2]
[1643568023395,0.25,94.339,94.303,0.2]
[1643568024998,0.25,94.339,94.312,6.0]
[1643568025401,0.25,94.349,94.312,6.0]
[1643568027709,0.25,94.349,94.311,0.2]
[1643568028311,0.25,94.349,94.303,0.2]
[1643568031736,0.25,94.349,94.31,15.905]
[1643568031936,0.25,94.349,94.311,0.2]
[1643568032139,0.25,94.358,94.311,0.2]
[1643568034339,0.25,94.358,94.311,0.45]
[1643568034743,15.906,94.35,94.311,0.45]
[1643568034941,15.906,94.35,94.311,0.25]
[1643568035143,0.25,94.349,94.311,0.25]
[1643568035542,0.25,94.349,94.306,0.25]
[1643568035742,6.0,94.34,94.31,15.905]
[1643568035941,6.25,94.349,94.311,0.2]
[1643568036144,6.25,94.349,94.311,0.45]
[1643568036543,24.0651,94.359,94.311,0.45]
[1643568036544,1.45182235,94.389,94.315,6.0]
[1643568036744,1.45182235,94.413,94.34,15.894]
[1643568036943,1.45182235,94.434,94.35,1.47237621]
[1643568037143,22.6314,94.441,94.351,39.35231527]
[1643568037347,22.6314,94.441,94.352,23.4963]
[1643568037545,22.6314,94.441,94.362,111.1]
[1643568037745,1.45182235,94.456,94.363,0.45]
[1643568037947,15.888,94.46,94.381,25.17530563]
[1643568038145,15.888,94.46,94.382,0.2]
[1643568038344,15.888,94.46,94.391,6.0]
[1643568038743,15.888,94.46,94.392,0.25]
[1643568039143,23.4513,94.459,94.4,15.888]
[1643568039343,23.4513,94.459,94.401,34.778586]
[1643568039546,23.2013,94.459,94.402,0.2]
[1643568040745,0.25,94.458,94.401,0.45]
[1643568040945,0.25,94.458,94.41,15.888]
[1643568041150,0.25,94.458,94.411,0.2]
[1643568041346,0.25,94.458,94.411,0.45]
[1643568041548,0.25,94.458,94.411,42.48138473]
[1643568041749,0.25,94.458,94.412,0.2]
[1643568042348,0.25,94.469,94.412,0.2]
[1643568042747,0.25,94.471,94.412,0.2]
[1643568043148,15.887,94.47,94.412,0.2]
[1643568043349,6.0,94.462,94.412,0.2]
[1643568043748,0.25,94.461,94.412,0.2]
[1643568043949,0.25,94.461,94.412,0.11801507]
[1643568044350,15.888,94.46,94.412,0.11801507]
[1643568044750,0.25,94.459,94.412,0.11801507]
[1643568045749,0.25,94.469,94.412,0.11801507]
[1643568046150,0.25,94.47,94.412,0.11801507]
[1643568046749,0.25,94.47,94.412,0.36801507]
[1643568046949,15.888,94.46,94.412,0.36801507]
[1643568047352,0.25,94.459,94.421,6.0]
[1643568048656,0.25,94.459,94.412,0.36801507]
[1643568049651,0.25,94.459,94.412,0.11801507]
[1643568049851,0.25,94.459,94.412,0.36801507]
[1643568050051,0.25,94.459,94.412,0.11801507]
[1643568051459,15.89,94.45,94.412,0.11801507]
[1643568051855,0.25,94.449,94.412,0.11801507]
[1643568052658,15.89,94.45,94.412,0.11801507]
[1643568052860,0.25,94.449,94.412,0.11801507]
[1643568053259,15.89,94.45,94.412,0.36801507]
[1643568053459,15.888,94.46,94.412,0.36801507]
[1643568053662,15.888,94.46,94.421,6.0]
[1643568053861,0.25,94.459,94.422,0.25]
[1643568056887,0.25,94.459,94.421,6.0]
[1643568057092,15.889,94.45,94.412,0.11801507]
[1643568057288,0.25,94.449,94.412,0.11801507]
[1643568057688,15.889,94.45,94.412,0.11801507]
[1643568057990,15.889,94.45,94.401,0.11801507]
[1643568058487,15.888,94.46,94.41,21.887]
[1643568058689,15.888,94.46,94.411,0.11801507]
[1643568058988,15.888,94.46,94.411,0.36801507]
[1643568059188,23.3684,94.471,94.411,0.36801507]
[1643568059588,16.137,94.47,94.42,6.0]
[1643568059791,16.137,94.47,94.421,0.25]
[1643568060187,16.137,94.47,94.421,0.36801507]
[1643568060388,16.137,94.47,94.43,6.0]
[1643568060591,0.25,94.47,94.431,30.73276301]
[1643568060788,0.25,94.47,94.432,0.11801507]
[1643568061388,0.25,94.479,94.432,0.11801507]
[1643568062388,15.885,94.48,94.432,0.11801507]
[1643568062591,15.885,94.48,94.432,0.36801507]
[1643568062794,15.885,94.48,94.432,0.11801507]
[1643568062992,15.885,94.48,94.441,6.0]
[1643568063994,0.25,94.479,94.441,6.0]
[1643568065399,0.25,94.487,94.432,0.11801507]
[1643568065598,6.0,94.478,94.381,23.49641507]
[1643568065802,24.8555,94.477,94.382,1.59039128]
[1643568066001,6.0,94.472,94.382,0.11801507]
[1643568066201,6.0,94.467,94.382,0.11801507]
[1643568066399,15.889,94.46,94.382,42.39294363]
[1643568066598,23.0387,94.459,94.383,0.11801507]
[1643568066798,23.2887,94.459,94.383,0.11801507]
[1643568067000,6.0,94.449,94.383,0.11801507]
[1643568067202,6.0,94.449,94.34,15.07]
[1643568067203,23.0387,94.448,94.36,1.47237621]
[1643568067399,1.45182235,94.444,94.352,0.11801507]
[1643568067600,6.0,94.434,94.352,0.11801507]
[1643568067801,23.6997,94.433,94.352,0.11801507]
[1643568068000,15.896,94.43,94.36,15.896]
[1643568068200,15.896,94.43,94.361,0.11801507]
[1643568068406,6.0,94.42,94.361,0.36801507]
[1643568068800,0.25,94.419,94.361,0.36801507]
[1643568069401,6.0,94.41,94.361,0.36801507]
[1643568069903,0.25,94.409,94.361,0.36801507]
[1643568070908,0.25,94.419,94.361,0.36801507]
[1643568071207,6.0,94.41,94.37,15.894]
[1643568071407,6.0,94.42,94.371,0.11801507]
[1643568071606,0.25,94.409,94.371,0.11801507]
[1643568071806,0.25,94.409,94.371,0.36801507]
[1643568072607,1.45182235,94.45,94.381,24.84922293]
[1643568072907,0.25,94.449,94.382,0.36801507]
[1643568073108,0.25,94.449,94.382,0.11801507]
[1643568074110,15.892,94.44,94.382,0.11801507]
[1643568074308,0.25,94.439,94.382,0.11801507]
[1643568074609,6.0,94.43,94.382,0.11801507]
[1643568074809,0.25,94.429,94.382,0.11801507]
[1643568075410,0.25,94.429,94.382,0.36801507]
[1643568076007,15.893,94.43,94.382,0.36801507]
[1643568076409,0.25,94.429,94.382,0.36801507]
[1643568076808,15.893,94.43,94.382,0.11801507]
[1643568077607,6.0,94.42,94.382,0.11801507]
[1643568078010,15.893,94.43,94.382,0.11801507]
[1643568078210,0.25,94.419,94.382,0.11801507]
[1643568078510,6.0,94.42,94.382,0.11801507]
[1643568078908,0.25,94.429,94.382,0.11801507]
[1643568079209,0.25,94.429,94.382,0.36801507]
[1643568079410,0.25,94.429,94.382,0.11801507]
[1643568081314,0.25,94.429,94.382,0.36801507]
[1643568081713,0.25,94.429,94.391,6.0]
[1643568082811,0.25,94.439,94.382,0.36801507]
[1643568083213,0.25,94.445,94.382,0.36801507]
[1643568084014,15.893,94.43,94.382,0.36801507]
[1643568084413,0.25,94.429,94.382,0.36801507]
[1643568085813,0.25,94.429,94.391,6.0]
[1643568086213,0.25,94.429,94.382,0.36801507]
[1643568086815,15.893,94.43,94.382,0.36801507]
[1643568087016,15.893,94.43,94.391,6.0]
[1643568087316,15.893,94.43,94.392,0.25]
[1643568089317,15.893,94.43,94.382,0.11801507]
[1643568090117,15.895,94.42,94.382,0.11801507]
[1643568090318,0.25,94.419,94.382,0.11801507]
[1643568091118,23.1115,94.419,94.361,0.11801507]
[1643568091919,23.1115,94.419,94.361,41.07844847]
[1643568092119,15.896,94.41,94.362,0.11801507]
[1643568092317,0.25,94.409,94.362,0.36801507]
[1643568094621,0.25,94.409,94.371,6.0]
[1643568094820,0.25,94.418,94.372,0.25]
[1643568096048,0.25,94.418,94.362,0.36801507]
[1643568097049,15.896,94.41,94.362,0.36801507]
[1643568097249,0.25,94.409,94.362,0.11801507]
[1643568097448,0.25,94.409,94.351,1.47237621]
[1643568097449,0.25,94.409,94.353,0.11801507]
[1643568097652,0.25,94.409,94.324,2.91113788]
[1643568097653,0.25,94.409,94.362,6.0]
[1643568097849,6.0,94.408,94.341,1.47237621]
[1643568098049,6.0,94.406,94.337,1.47237621]
[1643568098251,105.35,94.405,94.338,35.17020306]
[1643568098449,105.1,94.396,94.339,0.11801507]
[1643568098651,15.902,94.38,94.339,0.11801507]
[1643568098850,0.25,94.379,94.339,0.11801507]
[1643568099951,0.25,94.379,94.339,0.36801507]
[1643568100753,15.902,94.38,94.339,0.36801507]
[1643568100955,23.6511,94.395,94.339,0.36801507]
[1643568100956,23.7302,94.417,94.348,6.0]
[1643568101153,24.9831,94.416,94.348,6.0]
[1643568101453,24.9831,94.416,94.349,0.25]
[1643568101652,24.9831,94.416,94.349,6.25]
[1643568101858,24.9831,94.416,94.349,6.36801507]
[1643568102054,15.897,94.41,94.349,6.0]
[1643568102254,0.25,94.409,94.349,6.0]
[1643568103256,15.9,94.4,94.349,6.0]
[1643568103456,23.8011,94.399,94.349,6.0]
[1643568103660,24.0511,94.399,94.349,6.0]
[1643568104057,23.8011,94.399,94.349,6.0]
[1643568104258,15.895,94.42,94.35,16.148]
[1643568104459,1.45182235,94.446,94.351,0.11801507]
[1643568104656,1.45182235,94.45,94.36,6.0]
[1643568104857,1.45182235,94.449,94.361,0.25]
[1643568105062,1.45182235,94.448,94.361,6.25]
[1643568105457,1.45182235,94.449,94.361,6.25]
[1643568105656,0.25,94.447,94.361,6.25]
[1643568105855,0.25,94.448,94.361,6.25]
[1643568106061,15.893,94.44,94.37,15.894]
[1643568106259,24.0865,94.439,94.371,29.72543291]
[1643568106460,24.0865,94.439,94.38,6.0]
[1643568106461,23.8365,94.439,94.38,6.0]
[1643568106657,23.8365,94.439,94.381,6.0]
[1643568106858,23.8365,94.439,94.382,0.25]
[1643568107163,23.8365,94.439,94.382,6.25]
[1643568107460,15.894,94.43,94.382,6.36801507]
[1643568107662,15.894,94.43,94.382,6.0]
[1643568107859,0.25,94.429,94.372,0.11801507]
[1643568108061,0.25,94.429,94.372,0.36801507]
[1643568108359,105.35,94.438,94.372,0.36801507]
[1643568108559,15.896,94.42,94.372,0.36801507]
[1643568108760,0.25,94.419,94.372,0.36801507]
[1643568109560,0.25,94.419,94.381,6.0]
[1643568111561,0.25,94.419,94.372,0.11801507]
[1643568112363,0.25,94.419,94.381,6.0]
[1643568112963,6.0,94.42,94.372,25.04791507]
[1643568113263,0.25,94.419,94.381,6.0]
[1643568113463,0.25,94.419,94.373,0.11801507]
[1643568114466,15.895,94.42,94.373,0.11801507]
[1643568114695,0.25,94.419,94.373,0.11801507]
[1643568115871,0.25,94.429,94.382,6.0]
[1643568116271,0.25,94.429,94.383,0.25]
[1643568116673,0.25,94.438,94.39,6.0]
[1643568116872,0.25,94.438,94.391,0.25]
[1643568117073,0.25,94.438,94.39,6.0]
[1643568117273,0.25,94.438,94.381,0.11801507]
[1643568117476,0.25,94.438,94.381,0.25]
[1643568117674,6.0,94.429,94.373,0.11801507]
[1643568117875,129.976,94.428,94.353,24.86261507]
[1643568118176,6.0,94.418,94.354,0.11801507]
[1643568118374,25.0186,94.417,94.354,0.11801507]
[1643568118578,6.0,94.407,94.354,0.11801507]
[1643568118774,0.25,94.406,94.354,0.11801507]
[1643568119376,24.4013,94.406,94.354,0.11801507]
[1643568119576,6.0,94.396,94.35,0.11801507]
[1643568119779,0.25,94.395,94.35,0.11801507]
[1643568120677,15.9,94.4,94.359,6.0]
[1643568120880,0.25,94.399,94.359,6.0]
[1643568121081,0.25,94.399,94.36,6.0]
[1643568121280,0.25,94.405,94.36,6.11801507]
[1643568121485,24.1513,94.406,94.36,6.0]
[1643568122703,0.25,94.405,94.36,6.0]
[1643568122904,0.25,94.405,94.351,0.11801507]
[1643568123101,0.25,94.405,94.351,0.36801507]
[1643568123301,0.25,94.405,94.36,6.0]
[1643568123500,24.1513,94.406,94.36,21.896]
[1643568123701,0.25,94.405,94.361,0.11801507]
[1643568123903,24.1513,94.406,94.361,0.11801507]
[1643568124103,0.25,94.405,94.361,0.11801507]
[1643568124504,0.25,94.405,94.36,6.0]
[1643568124704,15.898,94.4,94.36,6.0]
[1643568124904,0.25,94.399,94.36,6.0]